fUST/lending_fUST_20260506
["ID","MTS","AMOUNT","RATE_DAILY","PERIOD"]
[421660585,1778034649000,-500.0,0.00013698,2]
[421660569,1778034649000,-500.0,0.00013698,2]
[421660589,1778034649000,-500.0,0.00013698,2]
[421660576,1778034649000,-500.0,0.00013698,2]
[421660572,1778034649000,-500.0,0.00013698,2]
[421660587,1778034649000,-500.0,0.00013698,2]
[421660570,1778034649000,-512.06420987,0.00013698,2]
[421660574,1778034649000,-500.0,0.00013698,2]
[421660591,1778034649000,-500.0,0.00013698,2]
[421660595,1778034649000,-500.0,0.00013698,2]
[421660580,1778034649000,-791.02,0.00013698,2]
[421660593,1778034649000,-500.0,0.00013698,2]
[421660619,1778034649000,-500.0,0.00013698,2]
[421660617,1778034649000,-747.33,0.00013698,2]
[421660615,1778034649000,-861.79,0.00013698,2]
[421660621,1778034649000,-500.0,0.00013698,2]
[421660613,1778034649000,-502.8,0.00013698,2]
[421660603,1778034649000,-500.0,0.00013698,2]
[421660611,1778034649000,-1724.79,0.00013698,2]
[421660609,1778034649000,-500.0,0.00013698,2]
[421660597,1778034649000,-786.62,0.00013698,2]
[421660601,1778034649000,-502.50144789,0.00013698,2]
[421660607,1778034649000,-678.93,0.00013698,2]
[421660605,1778034649000,-500.0,0.00013698,2]
[421660599,1778034649000,-500.0,0.00013698,2]
[421660699,1778034650000,-500.0,0.00013698,2]
[421660705,1778034650000,-500.0,0.00013698,2]
[421660695,1778034650000,-500.0,0.00013698,2]
[421660703,1778034650000,-500.0,0.00013698,2]
[421660693,1778034650000,-500.0,0.00013698,2]
[421660691,1778034650000,-500.0,0.00013698,2]
[421660685,1778034650000,-500.0,0.00013698,2]
[421660677,1778034650000,-2654.83,0.00013698,2]
[421660683,1778034650000,-500.0,0.00013698,2]
[421660687,1778034650000,-500.0,0.00013698,2]
[421660707,1778034650000,-500.0,0.00013698,2]
[421660681,1778034650000,-1819.87,0.00013698,2]
[421660679,1778034650000,-2655.00027441,0.00013698,2]
[421660689,1778034650000,-500.0,0.00013698,2]
[421660697,1778034650000,-500.0,0.00013698,2]
[421660713,1778034650000,-489.45780765,0.00013698,2]
[421660701,1778034650000,-500.0,0.00013698,2]
[421660731,1778034650000,-590.85,0.00013698,2]
[421660709,1778034650000,-10.54219235,0.00013698,2]
[421660737,1778034650000,-2014.57,0.00013698,2]
[421660735,1778034650000,-500.0,0.00013698,2]
[421660733,1778034650000,-500.0,0.00013698,2]
[421660729,1778034650000,-1827.58,0.00013698,2]
[421660739,1778034650000,-30.48147681,0.00013698,2]
[421660725,1778034650000,-500.0,0.00013698,2]
[421660727,1778034650000,-1020.38,0.00013698,2]
[421660719,1778034650000,-519.60100116,0.00013698,2]
[421660717,1778034650000,-500.0,0.00013698,2]
[421660715,1778034650000,-500.0,0.00013698,2]
[421660721,1778034650000,-500.0,0.00013698,2]
[421660723,1778034650000,-500.0,0.00013698,2]
[421664337,1778034702000,152.0,8.01e-05,7]
[421664387,1778034963000,1665.674121,0.00013,120]
[421664400,1778035083000,152.0,8.01e-05,7]
[421664431,1778035151000,152.0,8.01e-05,7]
[421664496,1778035412000,716.83765531,8.01e-05,2]
[421664656,1778035785000,5000.0,8.01e-05,2]
[421664657,1778035798000,152.0,8.01e-05,7]
[421664658,1778035808000,5000.0,8.01e-05,2]
[421664660,1778035830000,5000.0,8.01e-05,2]
[421664669,1778035832000,-300.0,0.00010999,2]
[421664667,1778035832000,-300.0,0.00010999,2]
[421664668,1778035832000,-1200.0,0.00010999,2]
[421664666,1778035832000,-300.0,0.00010999,2]
[421664665,1778035832000,-300.0,0.00010999,2]
[421664662,1778035832000,-356.12680237,8.089e-05,2]
[421664664,1778035832000,-420.22962679,0.00010089,2]
[421664663,1778035832000,-1445.83442208,0.0001,2]
[421664670,1778035832000,-2914.83782735,0.00011,2]
[421664749,1778035838000,-300.0,0.00011219,2]
[421664750,1778035838000,-300.0,0.00011219,2]
[421664756,1778035838000,-500.0,0.00011899,2]
[421664752,1778035838000,-600.0,0.00011442,2]
[421664764,1778035838000,-500.0,0.00011899,2]
[421664758,1778035838000,-500.0,0.00011899,2]
[421664760,1778035838000,-500.0,0.00011899,2]
[421664754,1778035838000,-335.0,0.00011808,3]
[421664777,1778035838000,-500.0,0.00011899,2]
[421664747,1778035838000,-300.0,0.00011219,2]
[421664744,1778035838000,-300.0,0.00011219,2]
[421664724,1778035838000,-300.0,0.00011219,2]
[421664740,1778035838000,-300.0,0.00011219,2]
[421664736,1778035838000,-300.0,0.00011219,2]
[421664766,1778035838000,-162.5093075,0.00011899,2]
[421664728,1778035838000,-300.0,0.00011219,2]
[421664726,1778035838000,-300.0,0.00011219,2]
[421664732,1778035838000,-300.0,0.00011219,2]
[421664738,1778035838000,-300.0,0.00011219,2]
[421664734,1778035838000,-300.0,0.00011219,2]
[421664722,1778035838000,-300.0,0.00011219,2]
[421664730,1778035838000,-300.0,0.00011219,2]
[421664719,1778035838000,-4641.14814157,0.00011,2]
[421664710,1778035838000,-281.01403108,0.00011,2]
[421664742,1778035838000,-300.0,0.00011219,2]
[421664781,1778035838000,-500.0,0.00011899,2]
[421664762,1778035838000,-500.0,0.00011899,2]
[421664779,1778035838000,-500.0,0.00011899,2]
[421664768,1778035838000,-550.0,0.00011899,2]
[421664830,1778035838000,-3577.7963158,0.000119,2]
[421664819,1778035838000,-500.0,0.00011899,2]
[421664817,1778035838000,-500.0,0.00011899,2]
[421664815,1778035838000,-409.06747377,0.00011899,2]
[421664825,1778035838000,-40145.0,0.000119,2]
[421664827,1778035838000,-66203.86887274,0.000119,2]
[421664823,1778035838000,-64178.63028659,0.000119,2]
[421664813,1778035838000,-500.0,0.00011899,2]
[421664811,1778035838000,-500.0,0.00011899,2]
[421664809,1778035838000,-313.15667215,0.00011899,2]
[421664800,1778035838000,-500.0,0.00011899,2]
[421664805,1778035838000,-500.0,0.00011899,2]
[421664821,1778035838000,-500.0,0.00011899,2]
[421664804,1778035838000,-500.0,0.00011899,2]
[421664784,1778035838000,-519.07333,0.00011899,2]
[421664807,1778035838000,-500.0,0.00011899,2]
[421664770,1778035838000,-500.0,0.00011899,2]
[421664773,1778035838000,-500.0,0.00011899,2]
[421664786,1778035838000,-419.02690613,0.00011899,2]
[421664775,1778035838000,-500.0,0.00011899,2]
[421664790,1778035838000,-500.0,0.00011899,2]
[421664787,1778035838000,-500.0,0.00011899,2]
[421664791,1778035838000,-500.0,0.00011899,2]
[421664794,1778035838000,-578.05163654,0.00011899,2]
[421664796,1778035838000,-500.0,0.00011899,2]
[421664771,1778035838000,-500.0,0.00011899,2]
[421665073,1778035840000,-500.0,0.00012328,2]
[421665079,1778035840000,-500.0,0.00012328,2]
[421665064,1778035840000,-500.0,0.00012328,2]
[421665077,1778035840000,-500.0,0.00012328,2]
[421665081,1778035840000,-500.0,0.00012328,2]
[421665066,1778035840000,-500.0,0.00012328,2]
[421665094,1778035840000,-737.94,0.00012328,2]
[421665083,1778035840000,-500.0,0.00012328,2]
[421665088,1778035840000,-500.0,0.00012328,2]
[421665086,1778035840000,-500.0,0.00012328,2]
[421665090,1778035840000,-500.0,0.00012328,2]
[421665075,1778035840000,-565.77,0.00012328,2]
[421665068,1778035840000,-500.0,0.00012328,2]
[421665071,1778035840000,-500.0,0.00012328,2]
[421665038,1778035840000,-60825.6386029,0.00012,2]
[421665061,1778035840000,-1936.055,0.00012328,2]
[421665059,1778035840000,-500.0,0.00012328,2]
[421665057,1778035840000,-659.19,0.00012328,2]
[421665053,1778035840000,-161.57016804,0.00012146,2]
[421665046,1778035840000,-484.33245122,0.00012088,2]
[421665052,1778035840000,-160.0,0.00012146,2]
[421665047,1778035840000,-160.0,0.00012146,2]
[421665056,1778035840000,-500.0,0.00012328,2]
[421665050,1778035840000,-160.0,0.00012146,2]
[421665044,1778035840000,-500.0,0.00012,2]
[421665042,1778035840000,-1019.69,0.00012,2]
[421665040,1778035840000,-33604.6197621,0.00012,2]
[421665036,1778035840000,-19848.23501467,0.000119,2]
[421665096,1778035840000,-500.0,0.00012328,2]
[421665070,1778035840000,-500.0,0.00012328,2]
[421665098,1778035840000,-500.0,0.00012328,2]
[421665084,1778035840000,-516.97198826,0.00012328,2]
[421665092,1778035840000,-500.0,0.00012328,2]
[421665104,1778035840000,-500.0,0.00012328,2]
[421665158,1778035840000,-653.91,0.00012328,2]
[421665154,1778035840000,-500.0,0.00012328,2]
[421665142,1778035840000,-500.0,0.00012328,2]
[421665146,1778035840000,-500.0,0.00012328,2]
[421665152,1778035840000,-500.0,0.00012328,2]
[421665139,1778035840000,-500.0,0.00012328,2]
[421665144,1778035840000,-500.0,0.00012328,2]
[421665156,1778035840000,-500.0,0.00012328,2]
[421665150,1778035840000,-553.93,0.00012328,2]
[421665137,1778035840000,-688.3,0.00012328,2]
[421665148,1778035840000,-1509.19,0.00012328,2]
[421665135,1778035840000,-500.0,0.00012328,2]
[421665133,1778035840000,-1293.46,0.00012328,2]
[421665131,1778035840000,-500.0,0.00012328,2]
[421665160,1778035840000,-654.78,0.00012328,2]
[421665117,1778035840000,-500.0,0.00012328,2]
[421665100,1778035840000,-892.83,0.00012328,2]
[421665129,1778035840000,-500.0,0.00012328,2]
[421665106,1778035840000,-500.0,0.00012328,2]
[421665109,1778035840000,-500.0,0.00012328,2]
[421665162,1778035840000,-500.0,0.00012328,2]
[421665111,1778035840000,-506.07969033,0.00012328,2]
[421665102,1778035840000,-266.51814961,0.00012328,2]
[421665115,1778035840000,-516.99,0.00012328,2]
[421665113,1778035840000,-500.0,0.00012328,2]
[421665119,1778035840000,-500.0,0.00012328,2]
[421665125,1778035840000,-500.0,0.00012328,2]
[421665123,1778035840000,-500.0,0.00012328,2]
[421665127,1778035840000,-500.0,0.00012328,2]
[421665121,1778035840000,-500.0,0.00012328,2]
[421665241,1778035841000,-1490.19,0.00012328,2]
[421665237,1778035841000,-1041.57,0.00012328,2]
[421665235,1778035841000,-2815.78,0.00012328,2]
[421665239,1778035841000,-500.0,0.00012328,2]
[421665223,1778035841000,-500.0,0.00012328,2]
[421665229,1778035841000,-501.66970442,0.00012328,2]
[421665222,1778035841000,-500.0,0.00012328,2]
[421665225,1778035841000,-500.0,0.00012328,2]
[421665253,1778035841000,-344.11132514,0.00012328,2]
[421665231,1778035841000,-500.0,0.00012328,2]
[421665233,1778035841000,-501.15192399,0.00012328,2]
[421665243,1778035841000,-500.0,0.00012328,2]
[421665264,1778035841000,-500.0,0.00012328,2]
[421665245,1778035841000,-500.0,0.00012328,2]
[421665249,1778035841000,-1445.21,0.00012328,2]
[421665251,1778035841000,-1550.39,0.00012328,2]
[421665257,1778035841000,-500.0,0.00012328,2]
[421665263,1778035841000,-500.0,0.00012328,2]
[421665261,1778035841000,-500.0,0.00012328,2]
[421665259,1778035841000,-150.48406931,0.00012328,2]
[421665265,1778035841000,-946.28,0.00012328,2]
[421665266,1778035841000,-500.0,0.00012328,2]
[421665269,1778035841000,-500.0,0.00012328,2]
[421665267,1778035841000,-500.0,0.00012328,2]
[421665219,1778035841000,-500.0,0.00012328,2]
[421665255,1778035841000,-500.0,0.00012328,2]
[421665227,1778035841000,-597.04,0.00012328,2]
[421665189,1778035841000,-718.39,0.00012328,2]
[421665215,1778035841000,-500.0,0.00012328,2]
[421665163,1778035841000,-500.0,0.00012328,2]
[421665165,1778035841000,-500.0,0.00012328,2]
[421665170,1778035841000,-500.0,0.00012328,2]
[421665167,1778035841000,-754.07,0.00012328,2]
[421665174,1778035841000,-500.0,0.00012328,2]
[421665172,1778035841000,-500.0,0.00012328,2]
[421665180,1778035841000,-500.0,0.00012328,2]
[421665176,1778035841000,-606.18,0.00012328,2]
[421665178,1778035841000,-500.0,0.00012328,2]
[421665182,1778035841000,-500.0,0.00012328,2]
[421665185,1778035841000,-500.0,0.00012328,2]
[421665184,1778035841000,-500.0,0.00012328,2]
[421665217,1778035841000,-500.0,0.00012328,2]
[421665187,1778035841000,-1592.38,0.00012328,2]
[421665191,1778035841000,-962.6,0.00012328,2]
[421665193,1778035841000,-500.0,0.00012328,2]
[421665195,1778035841000,-500.0,0.00012328,2]
[421665201,1778035841000,-688.64,0.00012328,2]
[421665199,1778035841000,-500.0,0.00012328,2]
[421665203,1778035841000,-500.0,0.00012328,2]
[421665197,1778035841000,-1599.13,0.00012328,2]
[421665209,1778035841000,-523.02,0.00012328,2]
[421665205,1778035841000,-500.0,0.00012328,2]
[421665207,1778035841000,-500.0,0.00012328,2]
[421665211,1778035841000,-500.0,0.00012328,2]
[421665213,1778035841000,-1429.2,0.00012328,2]
[421665277,1778035841000,-500.0,0.00012328,2]
[421665271,1778035841000,-518.55,0.00012328,2]
[421665247,1778035841000,-1696.49,0.00012328,2]
[421665287,1778035841000,-500.0,0.00012328,2]
[421665343,1778035841000,-521.3609656,0.00012328,2]
[421665353,1778035841000,-500.0,0.00012328,2]
[421665354,1778035841000,-2624.98,0.00012328,2]
[421665356,1778035841000,-500.0,0.00012328,2]
[421665358,1778035841000,-1169.05,0.00012328,2]
[421665368,1778035841000,-500.0,0.00012328,2]
[421665370,1778035841000,-1739.53,0.00012328,2]
[421665366,1778035841000,-1095.43,0.00012328,2]
[421665364,1778035841000,-151.280934,0.00012328,2]
[421665372,1778035841000,-500.0,0.00012328,2]
[421665375,1778035841000,-500.0,0.00012328,2]
[421665360,1778035841000,-4934.05,0.00012328,2]
[421665347,1778035841000,-1683.76,0.00012328,2]
[421665362,1778035841000,-342.04891611,0.00012328,2]
[421665379,1778035841000,-1600.96,0.00012328,2]
[421665391,1778035841000,-734.16,0.00012328,2]
[421665394,1778035841000,-500.0,0.00012328,2]
[421665392,1778035841000,-3234.18,0.00012328,2]
[421665380,1778035841000,-1428.52,0.00012328,2]
[421665382,1778035841000,-501.49282279,0.00012328,2]
[421665396,1778035841000,-1528.26,0.00012328,2]
[421665388,1778035841000,-500.0,0.00012328,2]
[421665398,1778035841000,-655.31,0.00012328,2]
[421665386,1778035841000,-500.0,0.00012328,2]
[421665384,1778035841000,-500.0,0.00012328,2]
[421665275,1778035841000,-226.50545102,0.00012328,2]
[421665376,1778035841000,-2183.28,0.00012328,2]
[421665339,1778035841000,-655.58,0.00012328,2]
[421665400,1778035841000,-927.9,0.00012328,2]
[421665349,1778035841000,-24724.9,0.00012328,2]
[421665350,1778035841000,-998.3,0.00012328,2]
[421665273,1778035841000,-1343.2,0.00012328,2]
[421665290,1778035841000,-500.0,0.00012328,2]
[421665281,1778035841000,-1868.57,0.00012328,2]
[421665279,1778035841000,-500.68804066,0.00012328,2]
[421665283,1778035841000,-1546.86,0.00012328,2]
[421665285,1778035841000,-500.0,0.00012328,2]
[421665292,1778035841000,-1637.63,0.00012328,2]
[421665295,1778035841000,-501.02334313,0.00012328,2]
[421665299,1778035841000,-4242.9,0.00012328,2]
[421665302,1778035841000,-922.42,0.00012328,2]
[421665297,1778035841000,-509.82,0.00012328,2]
[421665301,1778035841000,-5044.4,0.00012328,2]
[421665289,1778035841000,-500.0,0.00012328,2]
[421665315,1778035841000,-3688.75,0.00012328,2]
[421665341,1778035841000,-645.67,0.00012328,2]
[421665338,1778035841000,-500.0,0.00012328,2]
[421665336,1778035841000,-500.0,0.00012328,2]
[421665345,1778035841000,-500.0,0.00012328,2]
[421665312,1778035841000,-500.0,0.00012328,2]
[421665332,1778035841000,-715.48,0.00012328,2]
[421665334,1778035841000,-500.0,0.00012328,2]
[421665307,1778035841000,-1161.05,0.00012328,2]
[421665308,1778035841000,-1277.08,0.00012328,2]
[421665310,1778035841000,-4630.43,0.00012328,2]
[421665305,1778035841000,-501.24361092,0.00012328,2]
[421665316,1778035841000,-500.0,0.00012328,2]
[421665330,1778035841000,-151.0,0.00012328,2]
[421665492,1778035842000,-500.0,0.00012602,2]
[421665482,1778035842000,-500.0,0.00012602,2]
[421665481,1778035842000,-503.14608662,0.00012602,2]
[421665476,1778035842000,-500.0,0.00012602,2]
[421665470,1778035842000,-500.0,0.00012602,2]
[421665475,1778035842000,-500.0,0.00012602,2]
[421665462,1778035842000,-150.161,0.00012595,2]
[421665472,1778035842000,-1936.055,0.00012602,2]
[421665455,1778035842000,-185.0,0.00012595,2]
[421665466,1778035842000,-500.0,0.00012602,2]
[421665479,1778035842000,-500.0,0.00012602,2]
[421665485,1778035842000,-500.0,0.00012602,2]
[421665496,1778035842000,-500.0,0.00012602,2]
[421665495,1778035842000,-500.0,0.00012602,2]
[421665491,1778035842000,-500.0,0.00012602,2]
[421665486,1778035842000,-565.77,0.00012602,2]
[421665498,1778035842000,-500.0,0.00012602,2]
[421665500,1778035842000,-500.0,0.00012602,2]
[421665502,1778035842000,-275.66858896,0.00012602,2]
[421665512,1778035842000,-500.0,0.00012602,2]
[421665504,1778035842000,-737.94,0.00012602,2]
[421665506,1778035842000,-500.0,0.00012602,2]
[421665510,1778035842000,-892.83,0.00012602,2]
[421665522,1778035842000,-500.0,0.00012602,2]
[421665457,1778035842000,-447.282,0.00012595,2]
[421665488,1778035842000,-500.0,0.00012602,2]
[421665459,1778035842000,-2208.121,0.00012595,2]
[421665426,1778035842000,-500.0,0.00012328,2]
[421665464,1778035842000,-150.337,0.00012595,2]
[421665518,1778035842000,-500.0,0.00012602,2]
[421665404,1778035842000,-1387.91,0.00012328,2]
[421665402,1778035842000,-500.0,0.00012328,2]
[421665406,1778035842000,-2386.82,0.00012328,2]
[421665408,1778035842000,-1301.51,0.00012328,2]
[421665410,1778035842000,-500.0,0.00012328,2]
[421665418,1778035842000,-500.96642163,0.00012328,2]
[421665422,1778035842000,-5877.6,0.00012328,2]
[421665420,1778035842000,-500.0,0.00012328,2]
[421665414,1778035842000,-500.0,0.00012328,2]
[421665416,1778035842000,-500.0,0.00012328,2]
[421665412,1778035842000,-500.0,0.00012328,2]
[421665428,1778035842000,-5239.35,0.00012328,2]
[421665424,1778035842000,-3115.11,0.00012328,2]
[421665429,1778035842000,-2715.88,0.00012328,2]
[421665431,1778035842000,-336.55,0.00012329,2]
[421665435,1778035842000,-336.55,0.00012329,2]
[421665440,1778035842000,-336.59,0.00012329,2]
[421665434,1778035842000,-336.55,0.00012329,2]
[421665443,1778035842000,-188.07,0.00012329,2]
[421665438,1778035842000,-336.55,0.00012329,2]
[421665446,1778035842000,-188.07,0.00012329,2]
[421665448,1778035842000,-1019.69,0.00012429,2]
[421665451,1778035842000,-720.0,0.00012587,2]
[421665453,1778035842000,-741.0,0.00012595,2]
[421665468,1778035842000,-659.19,0.00012602,2]
[421665516,1778035842000,-500.0,0.00012602,2]
[421665558,1778035842000,-500.0,0.00012602,2]
[421665520,1778035842000,-516.99,0.00012602,2]
[421665581,1778035842000,-500.0,0.00012602,2]
[421665587,1778035842000,-500.0,0.00012602,2]
[421665585,1778035842000,-500.0,0.00012602,2]
[421665591,1778035842000,-718.39,0.00012602,2]
[421665589,1778035842000,-1592.38,0.00012602,2]
[421665594,1778035842000,-962.6,0.00012602,2]
[421665601,1778035842000,-1599.13,0.00012602,2]
[421665599,1778035842000,-500.0,0.00012602,2]
[421665596,1778035842000,-500.0,0.00012602,2]
[421665603,1778035842000,-500.0,0.00012602,2]
[421665609,1778035842000,-500.0,0.00012602,2]
[421665607,1778035842000,-500.0,0.00012602,2]
[421665615,1778035842000,-500.0,0.00012602,2]
[421665613,1778035842000,-523.02,0.00012602,2]
[421665611,1778035842000,-500.0,0.00012602,2]
[421665619,1778035842000,-500.0,0.00012602,2]
[421665617,1778035842000,-1429.2,0.00012602,2]
[421665621,1778035842000,-500.0,0.00012602,2]
[421665629,1778035842000,-500.0,0.00012602,2]
[421665631,1778035842000,-597.04,0.00012602,2]
[421665623,1778035842000,-500.0,0.00012602,2]
[421665633,1778035842000,-554.04755154,0.00012602,2]
[421665635,1778035842000,-2815.78,0.00012602,2]
[421665625,1778035842000,-500.0,0.00012602,2]
[421665508,1778035842000,-500.0,0.00012602,2]
[421665583,1778035842000,-500.0,0.00012602,2]
[421665578,1778035842000,-500.0,0.00012602,2]
[421665605,1778035842000,-688.64,0.00012602,2]
[421665574,1778035842000,-500.0,0.00012602,2]
[421665576,1778035842000,-606.18,0.00012602,2]
[421665524,1778035842000,-500.0,0.00012602,2]
[421665536,1778035842000,-1293.46,0.00012602,2]
[421665534,1778035842000,-500.0,0.00012602,2]
[421665528,1778035842000,-500.0,0.00012602,2]
[421665530,1778035842000,-500.0,0.00012602,2]
[421665543,1778035842000,-500.0,0.00012602,2]
[421665526,1778035842000,-500.0,0.00012602,2]
[421665532,1778035842000,-500.0,0.00012602,2]
[421665540,1778035842000,-688.3,0.00012602,2]
[421665538,1778035842000,-500.0,0.00012602,2]
[421665544,1778035842000,-500.0,0.00012602,2]
[421665549,1778035842000,-500.0,0.00012602,2]
[421665514,1778035842000,-500.0,0.00012602,2]
[421665547,1778035842000,-500.0,0.00012602,2]
[421665568,1778035842000,-754.07,0.00012602,2]
[421665564,1778035842000,-500.0,0.00012602,2]
[421665566,1778035842000,-500.0,0.00012602,2]
[421665570,1778035842000,-500.0,0.00012602,2]
[421665551,1778035842000,-1509.19,0.00012602,2]
[421665572,1778035842000,-500.0,0.00012602,2]
[421665560,1778035842000,-653.91,0.00012602,2]
[421665627,1778035842000,-500.0,0.00012602,2]
[421665556,1778035842000,-500.0,0.00012602,2]
[421665554,1778035842000,-500.0,0.00012602,2]
[421665552,1778035842000,-553.93,0.00012602,2]
[421665562,1778035842000,-500.0,0.00012602,2]
[421665721,1778035843000,-655.58,0.00012602,2]
[421665730,1778035843000,-24724.9,0.00012602,2]
[421665719,1778035843000,-500.0,0.00012602,2]
[421665717,1778035843000,-500.0,0.00012602,2]
[421665728,1778035843000,-1683.76,0.00012602,2]
[421665704,1778035843000,-4630.43,0.00012602,2]
[421665713,1778035843000,-715.48,0.00012602,2]
[421665702,1778035843000,-1277.08,0.00012602,2]
[421665711,1778035843000,-151.853596,0.00012602,2]
[421665700,1778035843000,-1161.05,0.00012602,2]
[421665723,1778035843000,-645.67,0.00012602,2]
[421665709,1778035843000,-500.0,0.00012602,2]
[421665715,1778035843000,-500.0,0.00012602,2]
[421665734,1778035843000,-500.0,0.00012602,2]
[421665741,1778035843000,-4934.05,0.00012602,2]
[421665736,1778035843000,-2624.98,0.00012602,2]
[421665725,1778035843000,-500.0,0.00012602,2]
[421665738,1778035843000,-500.0,0.00012602,2]
[421665740,1778035843000,-1169.05,0.00012602,2]
[421665696,1778035843000,-5044.4,0.00012602,2]
[421665742,1778035843000,-1095.43,0.00012602,2]
[421665744,1778035843000,-1739.53,0.00012602,2]
[421665754,1778035843000,-462.91765255,0.00012602,2]
[421665756,1778035843000,-500.0,0.00012602,2]
[421665758,1778035843000,-500.0,0.00012602,2]
[421665745,1778035843000,-500.0,0.00012602,2]
[421665743,1778035843000,-500.0,0.00012602,2]
[421665760,1778035843000,-734.16,0.00012602,2]
[421665732,1778035843000,-998.3,0.00012602,2]
[421665706,1778035843000,-500.0,0.00012602,2]
[421665643,1778035843000,-500.0,0.00012602,2]
[421665698,1778035843000,-922.42,0.00012602,2]
[421665637,1778035843000,-1041.57,0.00012602,2]
[421665639,1778035843000,-500.0,0.00012602,2]
[421665762,1778035843000,-3234.18,0.00012602,2]
[421665653,1778035843000,-500.0,0.00012602,2]
[421665655,1778035843000,-500.0,0.00012602,2]
[421665647,1778035843000,-1696.49,0.00012602,2]
[421665644,1778035843000,-500.0,0.00012602,2]
[421665661,1778035843000,-500.0,0.00012602,2]
[421665657,1778035843000,-500.0,0.00012602,2]
[421665659,1778035843000,-500.0,0.00012602,2]
[421665651,1778035843000,-1550.39,0.00012602,2]
[421665664,1778035843000,-946.28,0.00012602,2]
[421665668,1778035843000,-500.0,0.00012602,2]
[421665708,1778035843000,-3688.75,0.00012602,2]
[421665666,1778035843000,-500.0,0.00012602,2]
[421665670,1778035843000,-500.0,0.00012602,2]
[421665682,1778035843000,-500.0,0.00012602,2]
[421665680,1778035843000,-1546.86,0.00012602,2]
[421665684,1778035843000,-500.0,0.00012602,2]
[421665688,1778035843000,-500.0,0.00012602,2]
[421665686,1778035843000,-500.0,0.00012602,2]
[421665672,1778035843000,-518.55,0.00012602,2]
[421665678,1778035843000,-1868.57,0.00012602,2]
[421665674,1778035843000,-1343.2,0.00012602,2]
[421665676,1778035843000,-500.0,0.00012602,2]
[421665690,1778035843000,-1637.63,0.00012602,2]
[421665692,1778035843000,-509.82,0.00012602,2]
[421665694,1778035843000,-4242.9,0.00012602,2]
[421665649,1778035843000,-1445.21,0.00012602,2]
[421665748,1778035843000,-2183.28,0.00012602,2]
[421665641,1778035843000,-1490.19,0.00012602,2]
[421665746,1778035843000,-500.0,0.00012602,2]
[421665832,1778035843000,-565.77,0.00012876,2]
[421665817,1778035843000,-500.0,0.00012876,2]
[421665819,1778035843000,-659.19,0.00012876,2]
[421665830,1778035843000,-500.0,0.00012876,2]
[421665821,1778035843000,-500.0,0.00012876,2]
[421665823,1778035843000,-1936.055,0.00012876,2]
[421665834,1778035843000,-501.45015983,0.00012876,2]
[421665825,1778035843000,-500.0,0.00012876,2]
[421665838,1778035843000,-269.47397924,0.00012876,2]
[421665836,1778035843000,-500.0,0.00012876,2]
[421665841,1778035843000,-500.0,0.00012876,2]
[421665852,1778035843000,-892.83,0.00012876,2]